bitfinex/quotes_BTCUSD_20251226
["timestamp","ask_amount","ask_price","bid_price","bid_amount"]
[1766768220471,0.06162898,87136.0,87119.0,0.00055]
[1766768220642,0.2,87130.0,87104.0,1.47054]
[1766768221190,0.2,87130.0,87067.0,0.06891201]
[1766768221191,0.61238,87109.0,87082.0,1.47054]
[1766768221401,0.61238,87099.0,87067.0,1.47054]
[1766768221600,0.61238,87099.0,87068.0,0.01156]
[1766768222384,0.61238,87099.0,87069.0,1.47054]
[1766768223525,0.61238,87099.0,87070.0,0.01156]
[1766768224644,0.61238,87099.0,87068.0,1.47054]
[1766768224864,0.2,87100.0,87068.0,1.47054]
[1766768225238,0.61238,87099.0,87068.0,1.47054]
[1766768226270,0.61238,87099.0,87068.0,1.45882821]
[1766768226487,0.2,87090.0,87068.0,1.45882821]
[1766768227121,0.2,87090.0,87067.0,0.00035863]
[1766768227122,0.62398,87089.0,87067.0,0.00035863]
[1766768227787,0.08216894,87103.0,87067.0,0.00035863]
[1766768227788,0.06162898,87095.0,87068.0,1.47054]
[1766768228045,0.06162898,87098.0,87070.0,1.47054]
[1766768228248,0.06162898,87099.0,87070.0,1.47054]
[1766768228453,0.06162898,87097.0,87070.0,1.47054]
[1766768228664,0.63469007,87096.0,87070.0,1.47054]
[1766768228869,0.06162898,87097.0,87070.0,1.47054]
[1766768228870,0.63469007,87095.0,87070.0,1.47054]
[1766768229074,0.2,87100.0,87070.0,1.47054]
[1766768229075,0.01071007,87094.0,87070.0,1.47054]
[1766768229276,0.01071007,87093.0,87070.0,1.47054]
[1766768229564,0.01071007,87092.0,87070.0,1.47054]
[1766768229740,0.01071007,87091.0,87070.0,1.47054]
[1766768229955,0.01071007,87090.0,87070.0,1.47054]
[1766768230122,0.01071007,87089.0,87070.0,1.46306099]
[1766768230314,0.01071007,87088.0,87070.0,1.46306099]
[1766768230517,0.62398,87095.0,87070.0,1.46306099]
[1766768230518,0.01071007,87087.0,87070.0,1.46306099]
[1766768230723,0.01071007,87086.0,87070.0,1.45184231]
[1766768230918,0.01016007,87085.0,87070.0,1.45184231]
[1766768231120,0.06162898,87095.0,87070.0,1.51412039]
[1766768231367,0.06162898,87094.0,87070.0,1.51412039]
[1766768231567,0.06162898,87095.0,87070.0,1.51412039]
[1766768231785,0.06162898,87101.0,87081.0,1.47054]
[1766768231977,0.64249,87115.0,87083.0,1.47054]
[1766768231978,0.06162898,87104.0,87083.0,1.47054]
[1766768232181,0.64249,87125.0,87091.0,1.47054]
[1766768232335,0.64249,87125.0,87093.0,1.47054]
[1766768232542,0.01,87124.0,87095.0,1.47054]
[1766768232737,0.2,87130.0,87095.0,1.47054]
[1766768232944,0.01,87129.0,87095.0,1.47054]
[1766768233170,0.08216894,87135.0,87094.0,0.01156]
[1766768233171,0.08216894,87135.0,87101.0,1.47054]
[1766768233551,0.2,87130.0,87103.0,1.47054]
[1766768233707,0.2,87130.0,87103.0,1.47064729]
[1766768234326,0.2,87130.0,87103.0,1.56866375]
[1766768234528,0.2,87120.0,87103.0,1.46409829]
[1766768234701,0.2,87120.0,87103.0,0.00010729]
[1766768234901,0.2,87120.0,87093.0,1.38418]
[1766768234902,0.2,87110.0,87093.0,1.38418]
[1766768235130,0.20010759,87110.0,87093.0,1.38418]
[1766768235767,0.01811401,87110.0,87093.0,1.38418]
[1766768236652,0.21811401,87110.0,87093.0,1.38418]
[1766768236878,0.01811401,87110.0,87093.0,1.38418]
[1766768239238,0.00263407,87110.0,87094.0,0.10796315]
[1766768239466,0.09216894,87125.0,87095.0,1.36922454]
[1766768239678,0.2,87120.0,87095.0,1.36933213]
[1766768239876,0.94209,87120.0,87095.0,1.36933213]
[1766768240120,0.74209,87119.0,87095.0,1.36933213]
[1766768240713,0.2,87120.0,87095.0,1.35811555]
[1766768240910,0.75319,87119.0,87095.0,0.00010759]
[1766768242997,0.01072995,87118.0,87095.0,0.00010759]
[1766768243194,0.01072995,87117.0,87095.0,0.00010759]
[1766768243558,0.75319,87119.0,87095.0,0.00010759]
[1766768243559,0.01072995,87116.0,87095.0,0.00010759]
[1766768243734,0.01072995,87115.0,87095.0,0.00010759]
[1766768243945,0.75319,87119.0,87088.0,1.38418]
[1766768243946,0.01072995,87114.0,87088.0,1.38418]
[1766768244152,0.01072995,87114.0,87082.0,0.00025218]
[1766768244153,0.000107,87095.0,87082.0,0.00025218]
[1766768244349,0.01072995,87094.0,87082.0,0.00025218]
[1766768244752,0.01072995,87093.0,87082.0,0.00025218]
[1766768244994,0.2,87100.0,87082.0,0.00025218]
[1766768244995,0.01072995,87092.0,87082.0,0.00025218]
[1766768245215,0.2,87100.0,87074.0,1.37695319]
[1766768245436,0.01072942,87099.0,87074.0,1.37695319]
[1766768245584,0.2,87100.0,87074.0,1.37695319]
[1766768245585,0.2,87090.0,87074.0,1.37695319]
[1766768245801,0.01072942,87089.0,87074.0,1.36199473]
[1766768246005,0.01072942,87088.0,87074.0,1.36199473]
[1766768246207,0.01072942,87087.0,87074.0,1.36199473]
[1766768246413,0.01072942,87086.0,87074.0,1.36199473]
[1766768246613,0.96457,87100.0,87087.0,0.000442]
[1766768246614,0.77937,87098.0,87087.0,0.000442]
[1766768246815,0.77937,87098.0,87074.0,1.36199473]
[1766768246977,0.77937,87098.0,87074.0,1.37355473]
[1766768247186,0.77859183,87098.0,87074.0,1.37355473]
[1766768247407,0.7786995,87098.0,87074.0,1.37355473]
[1766768249038,0.7786995,87098.0,87051.0,1.38418]
[1766768249245,0.7786995,87098.0,87066.0,1.38418]
[1766768249449,0.7786995,87098.0,87067.0,1.39574]
[1766768250389,0.00010767,87098.0,87067.0,1.39574]
[1766768251500,0.00010767,87098.0,87067.0,1.38418]
[1766768251501,0.77783,87097.0,87067.0,1.38418]
[1766768251672,0.77783,87097.0,87068.0,0.01156]
[1766768251673,0.77783,87089.0,87068.0,0.01156]
[1766768252116,0.08227661,87098.0,87089.0,0.000442]
[1766768252315,0.06184163,87090.0,87079.0,1.37340367]
[1766768253852,0.06184163,87089.0,87077.0,0.01156]
[1766768254054,0.06184163,87088.0,87077.0,0.01156]
[1766768254351,0.06184163,87089.0,87069.0,1.38418]
[1766768254564,0.06184163,87083.0,87070.0,0.01156]
[1766768254741,0.2,87090.0,87053.0,1.38418]
[1766768254742,0.000549,87069.0,87053.0,1.38418]
[1766768254983,0.000549,87069.0,87054.0,0.01156]
[1766768255195,1.02344,87082.0,87054.0,0.01156]
[1766768255196,0.06184163,87075.0,87054.0,0.01156]
[1766768255427,0.06184163,87076.0,87054.0,0.01156]
[1766768255637,0.06184163,87078.0,87056.0,1.38418]
[1766768255836,0.06184163,87077.0,87056.0,1.38418]
[1766768256036,0.2,87090.0,87050.0,0.0101]
[1766768256037,0.06184163,87072.0,87057.0,0.01156]
[1766768256192,0.06129163,87072.0,87057.0,1.39574]
[1766768256397,0.00010763,87078.0,87058.0,1.38418]
[1766768256628,0.08216894,87089.0,87058.0,1.38418]
[1766768256829,1.02344,87096.0,87058.0,1.38453863]
[1766768256830,0.08216894,87091.0,87058.0,1.38453863]
[1766768257393,1.02355,87090.0,87058.0,1.38453863]
[1766768258563,0.01073301,87089.0,87058.0,1.38453863]
[1766768258857,1.02355,87090.0,87060.0,1.38418]
[1766768258858,0.01073301,87088.0,87060.0,1.38418]
[1766768259015,1.02355,87090.0,87060.0,1.38418]
[1766768259016,0.01073301,87087.0,87060.0,1.38418]
[1766768259356,1.02355,87090.0,87060.0,1.38418]
[1766768259357,0.01073301,87086.0,87060.0,1.38418]
[1766768259567,0.01073301,87085.0,87062.0,1.38418]
[1766768259741,0.01073301,87084.0,87062.0,1.38418]
[1766768260061,0.01073301,87083.0,87062.0,1.38418]
[1766768260202,0.01073301,87082.0,87068.0,0.00044128]
[1766768260412,0.01073301,87081.0,87074.0,0.0002522]
[1766768260614,0.01073301,87080.0,87069.0,0.01156]
[1766768260817,0.01073301,87079.0,87069.0,0.01156]
[1766768261020,1.02355,87090.0,87069.0,0.01156]
[1766768261021,0.01073301,87078.0,87069.0,0.01156]
[1766768261272,0.01073301,87077.0,87069.0,0.01156]
[1766768261450,0.01073301,87076.0,87069.0,0.01156]
[1766768261658,3.01e-06,87075.0,87069.0,0.01156]
[1766768261898,1.02355,87090.0,87069.0,0.01156]
[1766768262245,0.08216894,87098.0,87069.0,1.39574]
[1766768262628,0.01,87115.0,87069.0,1.39574]
[1766768262629,1.03417,87097.0,87069.0,1.39574]
[1766768265304,1.11633894,87097.0,87069.0,1.39574]
[1766768265500,1.11633894,87097.0,87059.0,0.05435974]
[1766768265705,1.11633894,87097.0,87058.0,0.00035863]
[1766768265706,1.03417,87094.0,87060.0,0.05756]
[1766768265948,1.11633894,87094.0,87060.0,0.05756]
[1766768266130,1.11633894,87094.0,87060.0,0.17180524]
[1766768266657,1.03417,87087.0,87061.0,0.01156]
[1766768266850,1.03417,87085.0,87061.0,0.01156]
[1766768267052,1.03417,87086.0,87061.0,0.01156]
[1766768267356,1.03417,87086.0,87058.0,1.45767863]
[1766768267735,1.03417,87083.0,87059.0,0.01156]
[1766768267917,1.03417,87083.0,87048.0,1.45732]
[1766768267918,1.03417,87077.0,87060.0,0.01156]
[1766768268113,1.03417,87077.0,87048.0,1.45732]
[1766768268114,1.03452907,87077.0,87061.0,0.01156]
[1766768269729,1.03462836,87076.0,87038.0,1.45732]
[1766768270093,1.03462836,87076.0,87055.0,0.00938]
[1766768270094,1.03348,87076.0,87055.0,0.00938]
[1766768270837,1.03348,87076.0,87055.0,0.00721]
[1766768271075,1.11564894,87076.0,87055.0,0.00613]
[1766768271279,1.11564894,87076.0,87055.0,0.00505]
[1766768271698,1.02704,87074.0,87055.0,0.00505]
[1766768272499,1.10920894,87074.0,87055.0,0.00505]
[1766768272706,1.10920894,87074.0,87043.0,0.0462]
[1766768272707,0.000549,87055.0,87043.0,0.0002]
[1766768272876,0.08216894,87074.0,87043.0,0.0002]
[1766768272877,1.01704,87073.0,87043.0,0.01176]
[1766768273082,1.01704,87073.0,87044.0,1.4910687]
[1766768273305,0.00035907,87077.0,87043.0,0.0002]
[1766768273306,1.01704,87069.0,87043.0,0.0002]
[1766768273550,1.01684,87059.0,87028.0,0.046]
[1766768273729,0.0002,87043.0,87028.0,0.046]
[1766768273931,0.01074572,87058.0,87026.0,0.01156]
[1766768273932,1.02758572,87042.0,87026.0,0.01156]
[1766768274133,1.02511572,87041.0,87026.0,0.00906]
[1766768274334,0.01074572,87040.0,87026.0,0.00906]
[1766768274642,0.01074572,87039.0,87026.0,0.00906]
[1766768274795,0.01074572,87038.0,87026.0,0.00906]
[1766768274996,0.01074572,87037.0,87026.0,0.00906]
[1766768275264,0.01074572,87036.0,87026.0,0.01156]
[1766768275469,0.01074572,87035.0,87026.0,0.01156]
[1766768275672,0.00035885,87039.0,87026.0,1.46888]
[1766768275837,0.00035885,87039.0,87026.0,1.58312524]
[1766768276179,1.0153,87053.0,87026.0,1.46888]
[1766768276387,0.06890509,87077.0,87026.0,1.46888]
[1766768276388,0.0618069,87052.0,87026.0,1.46923885]
[1766768276588,0.2,87080.0,87026.0,1.46923885]
[1766768276589,0.0618069,87061.0,87031.0,1.45732]
[1766768276862,0.0618069,87061.0,87026.0,0.01191885]
[1766768276863,1.02629,87060.0,87033.0,1.45732]
[1766768277063,0.0618069,87059.0,87033.0,1.45732]
[1766768277489,1.02629,87060.0,87034.0,0.01156]
[1766768277490,1.0880969,87060.0,87034.0,0.01156]
[1766768277696,1.02629,87060.0,87034.0,1.45732]
[1766768277853,1.02629,87056.0,87035.0,0.01156]
[1766768278052,1.08789996,87056.0,87035.0,0.01156]
[1766768278280,1.02609306,87056.0,87035.0,0.01156]
[1766768278481,1.08789996,87056.0,87055.0,0.00059896]
[1766768278682,0.000598,87055.0,87035.0,0.01156]
[1766768279216,1.08789996,87056.0,87035.0,0.01156]
[1766768279580,1.08789996,87056.0,87035.0,0.00010763]
[1766768279785,1.0259,87054.0,87036.0,0.01156]
[1766768280172,0.2,87060.0,87023.0,1.45732]
[1766768280173,1.0156,87052.0,87023.0,1.45732]
[1766768280383,0.0618069,87051.0,87024.0,0.01156]
[1766768280626,1.0761569,87051.0,87025.0,1.45732]
[1766768280841,1.01435,87051.0,87025.0,1.45732]
[1766768281695,1.01435,87051.0,87026.0,0.01156]
[1766768281873,1.01435,87051.0,87026.0,1.46888]
[1766768282096,1.01435,87051.0,87026.0,1.58312524]
[1766768282296,1.01435,87051.0,87026.0,1.46888]
[1766768282520,1.01435,87051.0,87026.0,1.46388]
[1766768284224,0.00010763,87052.0,87026.0,1.46388]
[1766768284436,0.00010763,87052.0,87047.0,0.00025255]
[1766768284610,0.0618069,87066.0,87048.0,0.01156]
[1766768284812,0.0618069,87067.0,87048.0,0.01156]
[1766768285022,0.0618069,87067.0,87020.0,0.046]
[1766768285023,1.07741526,87066.0,87043.0,0.01156]
[1766768285201,0.001099,87048.0,87043.0,0.01191885]
[1766768285403,0.001099,87048.0,87040.0,0.01156]
[1766768285612,0.00035907,87048.0,87026.0,1.45732]
[1766768285955,0.00035907,87048.0,87027.0,0.01156]
[1766768286109,0.00035907,87048.0,87027.0,1.46888]
[1766768287745,4.86e-06,87047.0,87031.0,1.45732]
[1766768288089,0.0618069,87065.0,87031.0,1.45767907]
[1766768288605,1.0806069,87067.0,87031.0,1.45767907]
[1766768288806,0.0618069,87066.0,87033.0,1.45732]
[1766768289546,0.06172727,87075.0,87033.0,1.45732]
[1766768289709,1.05814727,87075.0,87033.0,1.45732]
[1766768290608,0.99642,87075.0,87033.0,1.45732]
[1766768290811,0.81139895,87075.0,87033.0,1.45732]
[1766768290985,0.81139895,87075.0,87032.0,0.11424524]
[1766768290986,0.81139895,87075.0,87035.0,1.45732]
[1766768291204,0.81139895,87075.0,87037.0,1.45732]
[1766768293023,0.63008,87069.0,87038.0,0.01156]
[1766768293231,0.63008,87069.0,87038.0,1.46888]
[1766768293445,0.00114836,87068.0,87039.0,0.00025236]
[1766768293591,0.63008,87067.0,87039.0,0.00025236]
[1766768293789,0.63008,87059.0,87039.0,3.6e-07]
[1766768293995,0.63008,87057.0,87039.0,3.6e-07]
[1766768294196,0.63008,87055.0,87039.0,3.6e-07]
[1766768295864,0.00114836,87054.0,87039.0,3.6e-07]
[1766768296066,0.63008,87053.0,87039.0,3.6e-07]
[1766768296319,0.63008,87053.0,87034.0,0.01156]
[1766768297311,0.63122836,87052.0,87034.0,0.01156]
[1766768297508,0.63008,87052.0,87034.0,0.01156]
[1766768298239,0.000297,87034.0,87016.0,1.52958]
[1766768298444,0.00035907,87034.0,87017.0,0.02718171]
[1766768298850,0.00035907,87034.0,87031.0,0.00025241]
[1766768299416,0.00035907,87034.0,87003.0,0.0002]
[1766768299417,0.61828,87033.0,87006.0,1.48358]
[1766768299615,0.00035907,87034.0,87011.0,1.48358]
[1766768299986,0.00035907,87034.0,87011.0,1.59782524]
[1766768299987,0.0107435,87033.0,87011.0,1.59782524]
[1766768300515,0.00035907,87034.0,87012.0,1.48358]
[1766768300750,0.61828,87050.0,87012.0,1.48358]
[1766768300751,0.08250946,87047.0,87012.0,1.48358]
[1766768300948,0.08250946,87048.0,87012.0,1.48393907]
[1766768301149,0.61828,87050.0,87012.0,1.48393907]
[1766768301366,0.61828,87050.0,87014.0,1.48358]
[1766768308323,0.2,87060.0,87014.0,1.48358]
[1766768308324,0.61863,87048.0,87014.0,1.48358]
[1766768309571,0.61863,87037.0,87014.0,1.48358]
[1766768310961,0.61843,87037.0,87014.0,1.48358]
[1766768311189,0.06192891,87034.0,87014.0,1.48338]
[1766768311470,0.68150727,87034.0,87014.0,1.48338]
[1766768311679,0.68150727,87034.0,86980.0,1.48378]
[1766768311680,1.00852,87013.0,86980.0,1.48378]
[1766768311825,1.00852,87013.0,86980.0,1.48358]
[1766768311826,1.20858,87011.0,86980.0,1.48358]
[1766768312037,1.20858,87011.0,86963.0,0.046]
[1766768312038,0.00035885,87013.0,86982.0,1.48358]
[1766768312214,0.04125238,87025.0,86986.0,0.0114961]
[1766768312415,1.20858,87030.0,86987.0,1.48338]
[1766768312416,0.01073766,87024.0,86987.0,1.48338]
[1766768312638,0.01073766,87023.0,86991.0,1.48358]
[1766768312838,0.01073766,87023.0,86988.0,0.046]
[1766768312839,0.01053766,87022.0,86993.0,1.48358]
[1766768313042,1.24983238,87030.0,86993.0,1.48338]
[1766768313198,1.20858,87030.0,86993.0,1.48338]
[1766768313406,0.000549,86993.0,86986.0,0.00035885]
[1766768313916,1.20914,87006.0,86986.0,0.00035885]
[1766768314120,1.20914,87005.0,86986.0,0.00035885]
[1766768314318,1.20914,87005.0,86966.0,1.48358]
[1766768314319,0.000358,86986.0,86966.0,1.48358]
[1766768314640,0.00035863,86986.0,86968.0,1.48358]
[1766768315397,0.00035863,86986.0,86962.0,0.01156]
[1766768315398,0.000549,86968.0,86940.0,1.48358]
[1766768315600,0.000549,86968.0,86939.0,0.0002]
[1766768315601,0.000549,86968.0,86942.0,1.48358]
[1766768315824,1.40894,86980.0,86942.0,1.48358]
[1766768316033,0.00035863,86986.0,86946.0,1.48358]
[1766768316452,0.00035863,86986.0,86949.0,1.48358]
[1766768316651,0.00035863,86986.0,86963.0,1.48358]
[1766768316851,0.00035863,86986.0,86965.0,1.48358]
[1766768317289,1.20894,86985.0,86949.0,0.01150099]
[1766768317503,0.00035863,86986.0,86939.0,0.0462]
[1766768317504,1.20894,86983.0,86940.0,1.48358]
[1766768317655,1.20894,86985.0,86941.0,0.01156]
[1766768317855,1.20894,86985.0,86948.0,1.48358]
[1766768318059,1.20894,86985.0,86950.0,1.48358]
[1766768318227,0.00035863,86986.0,86960.0,1.48358]
[1766768318429,0.00035863,86986.0,86960.0,1.59090818]
[1766768318926,0.01,87013.0,86960.0,1.59090818]
[1766768318927,0.2,87010.0,86962.0,1.48358]
[1766768319151,1.20929,87015.0,86963.0,0.01149914]
[1766768319345,1.20929,87015.0,86962.0,0.00035863]
[1766768319346,1.20929,86999.0,86962.0,1.48393863]
[1766768319559,1.20929,86999.0,86965.0,1.48358]
[1766768319963,1.20929,87009.0,86965.0,1.48358]
[1766768321208,1.20929,87009.0,86964.0,0.05764]
[1766768321209,0.01802882,87016.0,86968.0,1.48358]
[1766768321411,0.01802882,87016.0,86968.0,1.48338]
[1766768321632,0.01557818,87015.0,86970.0,1.48358]
[1766768321839,0.01557818,87015.0,86972.0,1.48358]
[1766768322610,0.2,87030.0,86972.0,1.48358]
[1766768322611,0.04125238,87018.0,86972.0,1.48358]
[1766768322883,1.25014238,87023.0,86975.0,1.48358]
[1766768323338,1.25014238,87023.0,86975.0,1.49507755]
[1766768323532,1.25014238,87023.0,86971.0,0.02309808]
[1766768323533,0.04105238,87029.0,86981.0,0.01149676]
[1766768323737,0.04105238,87029.0,86980.0,0.66586722]
[1766768323738,1.20889,87034.0,86982.0,0.0793364]
[1766768323869,1.20889,87034.0,86991.0,1.44842]
[1766768324069,1.20889,87034.0,86983.0,0.01149649]
[1766768324070,1.20889,87034.0,86993.0,1.42877]
[1766768324270,1.20889,87034.0,86992.0,0.05764]
[1766768324271,1.40909,87030.0,86995.0,1.42897]
[1766768324498,1.40909,87030.0,86995.0,1.46068808]
[1766768324903,0.01068519,87029.0,86995.0,1.46048808]
[1766768325107,0.01,87046.0,86995.0,1.42887763]
[1766768325108,0.2,87020.0,86995.0,1.42887763]
[1766768325264,1.21997519,87019.0,86995.0,1.44047763]
[1766768325464,1.20929,87017.0,86988.0,0.0116]
[1766768325667,1.20929,87015.0,86988.0,0.0116]
[1766768325890,1.21997519,87014.0,86988.0,1.44057]
[1766768326092,0.01068519,87013.0,86988.0,1.44057]
[1766768326596,0.01068519,87013.0,86963.0,0.11424524]
[1766768326597,0.2,87010.0,86963.0,0.11424524]
[1766768326795,0.00010763,87017.0,86949.0,0.04604]
[1766768326796,0.00055,86988.0,86966.0,0.0116]
[1766768327020,0.01068519,86987.0,86966.0,0.0116]
[1766768327225,0.01068519,86986.0,86966.0,0.0116]
[1766768327353,0.01068519,86985.0,86966.0,0.0116]
[1766768327773,0.2,86990.0,86976.0,3.8e-07]
[1766768327774,0.01068519,86984.0,86976.0,3.8e-07]
[1766768327975,0.01068519,86983.0,86976.0,3.8e-07]
[1766768328685,1.14223,86982.0,86976.0,3.8e-07]
[1766768328889,0.01068519,86981.0,86976.0,3.8e-07]
[1766768329088,0.01048519,86980.0,86976.0,3.8e-07]
[1766768329450,0.00010755,86984.0,86959.0,1.44037038]
[1766768329567,0.00010755,86984.0,86980.0,5.239e-05]
[1766768329772,0.00010755,86984.0,86971.0,1.42897]
[1766768329976,1.14223,87001.0,86984.0,0.000107]
[1766768330433,1.14223,87001.0,86973.0,1.42897]
[1766768330584,1.14223,87001.0,86973.0,1.42932863]
[1766768330788,0.2,87000.0,86973.0,1.42932863]
[1766768330983,1.14223,87001.0,86973.0,1.42932863]
[1766768331519,0.01,87009.0,86973.0,1.42932863]
[1766768331923,0.2,87010.0,86973.0,1.42932863]
[1766768332156,1.14234,87011.0,86973.0,1.42932863]
[1766768332544,0.2,87010.0,86973.0,1.42932863]
[1766768333186,1.14234,87011.0,86973.0,1.42932863]
[1766768335471,1.14169741,87011.0,86974.0,1.42897]
[1766768335651,0.06153567,87020.0,86974.0,1.42897]
[1766768335861,1.20240567,87019.0,86974.0,1.42897]
[1766768336275,1.15909411,87029.0,86974.0,1.42897]
[1766768336667,0.05,87021.0,86974.0,1.42897]
[1766768336784,1.14107,87020.0,86976.0,1.42897]
[1766768336979,1.34107,87020.0,86976.0,1.42897]
[1766768337251,1.14107,87009.0,86976.0,1.42897]
[1766768338078,1.14107,87007.0,86976.0,1.42897]
[1766768338284,0.2,87000.0,86976.0,1.42897]
[1766768338488,1.14221836,86999.0,86976.0,1.42897]
[1766768338703,1.14107,86999.0,86976.0,1.42897]
[1766768338902,1.14107,86999.0,86973.0,0.00035863]
[1766768338903,1.14107,86997.0,86973.0,0.00035863]
[1766768339148,1.14107,86989.0,86973.0,6.3e-07]
[1766768340820,1.14107,86989.0,86973.0,0.01160063]
[1766768340978,0.0107062,86988.0,86973.0,0.01160063]
[1766768341186,0.0107062,86987.0,86973.0,0.01140063]
[1766768341383,1.14107,86989.0,86973.0,0.01140063]
[1766768341384,0.0107062,86986.0,86973.0,0.01140063]
[1766768341752,0.08250946,87001.0,86973.0,0.01140063]
[1766768341753,0.0107062,86985.0,86973.0,0.01140063]
[1766768341921,1.14107,87001.0,86974.0,1.42897]
[1766768342119,1.14107,87001.0,86975.0,0.11424524]
[1766768342528,1.14107,87001.0,86975.0,1.54321524]
[1766768342731,0.11341605,87021.0,86975.0,1.54321524]
[1766768342732,0.01,87015.0,86975.0,1.54321524]
[1766768342915,1.14107,87016.0,86975.0,1.54321524]
[1766768343115,1.14087,87016.0,86977.0,1.42897]
[1766768345149,1.14087,87016.0,86963.0,0.01149914]
[1766768345150,0.000549,86977.0,86948.0,1.42897]
[1766768345323,0.000549,86977.0,86940.0,0.04604]
[1766768345324,0.00035907,86977.0,86950.0,1.42897]
[1766768345524,0.00035907,86977.0,86949.0,0.0116]
[1766768345525,0.00035907,86977.0,86952.0,1.30010921]
[1766768346950,0.00035907,86977.0,86949.0,0.0116]
[1766768346951,1.25679,86976.0,86940.0,0.04604]
[1766768347152,1.25679,86976.0,86932.0,0.0001]
[1766768347153,0.000549,86940.0,86932.0,0.0001]
[1766768347399,1.25679,86962.0,86937.0,0.0116]
[1766768347572,0.05748255,86983.0,86937.0,0.0116]
[1766768347573,1.26679,86975.0,86937.0,0.0116]
[1766768347773,1.25679,86981.0,86940.0,1.42897]
[1766768348398,1.25714907,86981.0,86940.0,1.42897]
[1766768348735,1.25714907,86981.0,86940.0,1.42877]
[1766768349052,1.25714907,86981.0,86941.0,0.11424524]
[1766768349053,1.25699,86980.0,86941.0,0.11424524]
[1766768349872,1.25699,86980.0,86940.0,1.42877]
[1766768350197,1.25699,86978.0,86940.0,1.47481]
[1766768350428,1.25699,86976.0,86940.0,1.47481]
[1766768350666,1.25699,86974.0,86940.0,1.47481]
[1766768350871,1.25699,86974.0,86942.0,1.42897]
[1766768351084,1.25699,86974.0,86941.0,0.11424524]
[1766768351085,0.08233331,87013.0,86974.0,0.00055]
[1766768351287,0.08233331,87013.0,86950.0,1.42897]
[1766768351288,1.25699,86998.0,86950.0,1.42897]
[1766768351511,0.2,87000.0,86941.0,0.11424524]
[1766768351512,1.25699,86996.0,86951.0,1.54321524]
[1766768351644,0.2,86990.0,86951.0,1.54321524]
[1766768351846,0.2,86990.0,86951.0,1.42897]
[1766768351847,1.25813836,86989.0,86951.0,1.42897]
[1766768352054,1.25699,86989.0,86951.0,1.42897]
[1766768352281,1.25699,86987.0,86951.0,1.42897]
[1766768352487,1.25699,86985.0,86968.0,0.00025268]
[1766768352686,1.25699,86985.0,86968.0,6.8e-07]
[1766768352886,1.25699,86989.0,86968.0,6.8e-07]
[1766768353684,1.25699,86989.0,86968.0,0.00035975]
[1766768353888,1.25699,86989.0,86956.0,0.0116]
[1766768353889,1.25663,86979.0,86935.0,0.04604]
[1766768354091,1.25663,86977.0,86937.0,0.0116]
[1766768354296,1.24495,86969.0,86931.0,0.0116]
[1766768354500,0.01149729,86977.0,86931.0,0.0116]
[1766768354501,1.24495,86967.0,86931.0,0.0116]
[1766768354847,1.24495,86965.0,86931.0,0.0116]
[1766768354994,1.24495,86963.0,86931.0,0.0116]
[1766768355175,1.24495,86961.0,86931.0,0.0116]
[1766768355376,1.24495,86959.0,86931.0,0.0116]
[1766768355579,0.01070777,86958.0,86933.0,1.3838]
[1766768355797,0.01045577,86957.0,86933.0,1.3838]
[1766768356020,1.24495,86962.0,86933.0,1.3838]
[1766768356223,1.24495,86962.0,86931.0,0.0116]
[1766768356503,1.24495,86960.0,86931.0,0.0116]
[1766768358103,1.24495,86958.0,86931.0,0.0116]
[1766768358272,1.32423955,86957.0,86931.0,0.0116]
[1766768358654,1.24495,86957.0,86931.0,0.0116]
[1766768359530,0.00035907,86979.0,86931.0,0.0116]
[1766768359531,1.24495,86964.0,86933.0,1.3838]
[1766768360092,1.24495,86964.0,86960.0,2.72e-06]
[1766768360296,1.24495,86964.0,86923.0,0.0002]
[1766768360297,1.24495,86964.0,86942.0,0.0116]
[1766768360934,1.23322,86962.0,86942.0,0.0116]
[1766768361108,0.000549,86942.0,86932.0,0.0117]
[1766768361309,1.23322,86962.0,86932.0,0.0117]
[1766768362339,1.23357907,86962.0,86932.0,0.0117]
[1766768363221,0.00035907,86962.0,86933.0,1.3838]
[1766768366984,0.00035907,86962.0,86952.0,0.00025274]
[1766768367188,0.00035408,86951.0,86945.0,0.0116]
[1766768367385,0.00035408,86951.0,86940.0,0.04604]
[1766768367572,0.00035408,86951.0,86944.0,0.00025279]
[1766768367903,0.0107063,86950.0,86944.0,0.00025279]
[1766768368087,0.0107063,86949.0,86944.0,0.00025279]
[1766768368300,1.22184907,86962.0,86938.0,0.0116]
[1766768368301,0.00024921,86944.0,86938.0,0.0116]
[1766768368506,0.00024921,86944.0,86932.0,0.0001]
[1766768368507,0.00024921,86944.0,86933.0,0.0116]
[1766768368722,1.2098,86952.0,86933.0,0.0116]
[1766768369118,1.2098,86952.0,86932.0,0.0001]
[1766768370646,0.04112434,86955.0,86923.0,0.04624]
[1766768370647,0.0001,86932.0,86923.0,0.0002]
[1766768370825,1.19822,86947.0,86923.0,0.0002]
[1766768371846,1.19857885,86947.0,86923.0,0.0002]
[1766768372923,1.23970319,86947.0,86916.0,0.0116]
[1766768373252,1.19925,86944.0,86916.0,0.0116]
[1766768373456,0.04112434,86944.0,86917.0,1.49804524]
[1766768373793,0.00035885,86947.0,86936.0,0.00025279]
[1766768374002,0.00035885,86947.0,86917.0,1.49804524]
[1766768374003,0.00024921,86936.0,86917.0,1.49804524]
[1766768374204,0.04112434,86946.0,86917.0,1.49804524]
[1766768374410,0.04112434,86944.0,86919.0,1.3838]
[1766768374604,1.24037434,86944.0,86919.0,1.3838]
[1766768375004,0.04112434,86942.0,86919.0,1.3838]
[1766768375231,1.24037434,86942.0,86919.0,1.3838]
[1766768375431,0.04112434,86941.0,86919.0,1.3838]
[1766768375633,0.04112434,86943.0,86919.0,1.3838]
[1766768375872,0.04112434,86942.0,86919.0,1.3838]
[1766768376221,0.04112434,86940.0,86919.0,1.3838]
[1766768376421,0.00035885,86947.0,86919.0,1.3838]
[1766768376422,0.04112434,86943.0,86919.0,1.3838]
[1766768376632,0.04112434,86943.0,86921.0,1.3838]
[1766768376833,0.00035885,86947.0,86921.0,1.3838]
[1766768376834,0.04112434,86945.0,86921.0,1.3838]